Workbook

Sheet Monthly Budget Summary
B1: COMPANY NAME | P1: DATE
B2: MONTHLY BUDGET | P2: YOUR LOGO HERE
B5: BUDGET TOTALS | C5: ESTIMATED | D5: ACTUAL | E5: DIFFERENCE
B6: Income | C6: =Income[[#Totals],[ESTIMATED]] -> 63,300.00 | D6: =Income[[#Totals],[ACTUAL]] -> 57,450.00 | E6: =IF('Monthly Budget Summary'!$B6="Income",'Monthly Budget Summary'!$D6-'Monthly Budget Summary'!$C6,'Monthly Budget Summary'!$C6-'Monthly Budget Summary'!$D6) -> (5,850.00)
B7: Personnel expenses | C7: =PersonnelExpenses[[#Totals],[ESTIMATED]] -> 18,500.00 | D7: =PersonnelExpenses[[#Totals],[ACTUAL]] -> 14,100.00 | E7: =IF('Monthly Budget Summary'!$B7="Income",'Monthly Budget Summary'!$D7-'Monthly Budget Summary'!$C7,'Monthly Budget Summary'!$C7-'Monthly Budget Summary'!$D7) -> 4,400.00
B8: Operating expenses | C8: =OperatingExpenses[[#Totals],[ESTIMATED]] -> 36,000.00 | D8: =OperatingExpenses[[#Totals],[ACTUAL]] -> 35,530.00 | E8: =IF('Monthly Budget Summary'!$B8="Income",'Monthly Budget Summary'!$D8-'Monthly Budget Summary'!$C8,'Monthly Budget Summary'!$C8-'Monthly Budget Summary'!$D8) -> 470.00
B9: Balance (income minus expenses) | C9: =C6-C7-C8 -> 8,800.00 | D9: =D6-D7-D8 -> 7,820.00 | E9: =SUBTOTAL(109,Table2[DIFFERENCE]) -> (980.00)
B11: ACTUAL EXPENSES | C11: AMOUNT | D11: % OF EXPENSES | E11: 15% REDUCTION
B12: =INDEX(OperatingExpenses[],MATCH(Top5Expenses[[#This Row],[AMOUNT]],OperatingExpenses[TOP 5 AMOUNT],0),1) -> Maintenance and repairs | C12: =LARGE(OperatingExpenses[TOP 5 AMOUNT],1) -> 4,600.00 | D12: =Top5Expenses[[#This Row],[AMOUNT]]/$D$8 -> 12.9% | E12: =Top5Expenses[[#This Row],[AMOUNT]]*0.15 -> 690.00
B13: =INDEX(OperatingExpenses[],MATCH(Top5Expenses[[#This Row],[AMOUNT]],OperatingExpenses[TOP 5 AMOUNT],0),1) -> Supplies | C13: =LARGE(OperatingExpenses[TOP 5 AMOUNT],2) -> 4,500.00 | D13: =Top5Expenses[[#This Row],[AMOUNT]]/$D$8 -> 12.7% | E13: =Top5Expenses[[#This Row],[AMOUNT]]*0.15 -> 675.00
B14: =INDEX(OperatingExpenses[],MATCH(Top5Expenses[[#This Row],[AMOUNT]],OperatingExpenses[TOP 5 AMOUNT],0),1) -> Rent or mortgage | C14: =LARGE(OperatingExpenses[TOP 5 AMOUNT],3) -> 4,500.00 | D14: =Top5Expenses[[#This Row],[AMOUNT]]/$D$8 -> 12.7% | E14: =Top5Expenses[[#This Row],[AMOUNT]]*0.15 -> 675.00
B15: =INDEX(OperatingExpenses[],MATCH(Top5Expenses[[#This Row],[AMOUNT]],OperatingExpenses[TOP 5 AMOUNT],0),1) -> Taxes | C15: =LARGE(OperatingExpenses[TOP 5 AMOUNT],4) -> 3,200.00 | D15: =Top5Expenses[[#This Row],[AMOUNT]]/$D$8 -> 9.0% | E15: =Top5Expenses[[#This Row],[AMOUNT]]*0.15 -> 480.00
B16: =INDEX(OperatingExpenses[],MATCH(Top5Expenses[[#This Row],[AMOUNT]],OperatingExpenses[TOP 5 AMOUNT],0),1) -> Advertising | C16: =LARGE(OperatingExpenses[TOP 5 AMOUNT],5) -> 2,500.00 | D16: =Top5Expenses[[#This Row],[AMOUNT]]/$D$8 -> 7.0% | E16: =Top5Expenses[[#This Row],[AMOUNT]]*0.15 -> 375.00
B17: Total | C17: =SUBTOTAL(109,Top5Expenses[AMOUNT]) -> 19,300.00 | D17: =SUBTOTAL(109,Top5Expenses[% OF EXPENSES]) -> 54.3% | E17: =SUBTOTAL(109,Top5Expenses[15% REDUCTION]) -> 2,895.00

Sheet Income
B1: =COMPANY_NAME -> COMPANY NAME | E1: DATE | F1: DATE
B2: MONTHLY BUDGET
B5: INCOME | C5: ESTIMATED | D5: ACTUAL | E5: TOP 5 AMOUNT | F5: DIFFERENCE
B6: Net sales | C6: 60,000.00 | D6: 54000 | E6: =Income[[#This Row],[ACTUAL]]+(10^-6)*ROW(Income[[#This Row],[ACTUAL]]) -> 54000.00001 | F6: =Income[[#This Row],[ACTUAL]]-Income[[#This Row],[ESTIMATED]] -> -6000
B7: Interest income | C7: 3,000.00 | D7: 3000 | E7: =Income[[#This Row],[ACTUAL]]+(10^-6)*ROW(Income[[#This Row],[ACTUAL]]) -> 3000.000007 | F7: =Income[[#This Row],[ACTUAL]]-Income[[#This Row],[ESTIMATED]] -> 0
B8: Asset sales (gain/loss) | C8: 300.00 | D8: 450 | E8: =Income[[#This Row],[ACTUAL]]+(10^-6)*ROW(Income[[#This Row],[ACTUAL]]) -> 450.000008 | F8: =Income[[#This Row],[ACTUAL]]-Income[[#This Row],[ESTIMATED]] -> 150
B9: Total Income | C9: =SUBTOTAL(109,Income[ESTIMATED]) -> 63,300.00 | D9: =SUBTOTAL(109,Income[ACTUAL]) -> 57,450.00 | F9: =SUBTOTAL(109,Income[DIFFERENCE]) -> (5,850.00)

Sheet Personnel Expenses
B1: =COMPANY_NAME -> COMPANY NAME | E1: DATE | F1: DATE
B2: MONTHLY BUDGET
B5: PERSONNEL EXPENSES | C5: ESTIMATED | D5: ACTUAL | E5: TOP 5 AMOUNT | F5: DIFFERENCE
B6: Wages | C6: 9,500.00 | D6: 9,600.00 | E6: =PersonnelExpenses[[#This Row],[ACTUAL]]+(10^-6)*ROW(PersonnelExpenses[[#This Row],[ACTUAL]]) -> 9600.000006 | F6: =PersonnelExpenses[[#This Row],[ESTIMATED]]-PersonnelExpenses[[#This Row],[ACTUAL]] -> -100
B7: Employee benefits | C7: 4,000.00 | D7: 0.00 | E7: =PersonnelExpenses[[#This Row],[ACTUAL]]+(10^-6)*ROW(PersonnelExpenses[[#This Row],[ACTUAL]]) -> 7e-06 | F7: =PersonnelExpenses[[#This Row],[ESTIMATED]]-PersonnelExpenses[[#This Row],[ACTUAL]] -> 4000
B8: Commission | C8: 5,000.00 | D8: 4,500.00 | E8: =PersonnelExpenses[[#This Row],[ACTUAL]]+(10^-6)*ROW(PersonnelExpenses[[#This Row],[ACTUAL]]) -> 4500.000008 | F8: =PersonnelExpenses[[#This Row],[ESTIMATED]]-PersonnelExpenses[[#This Row],[ACTUAL]] -> 500
B9: Total Personnel Expenses | C9: =SUBTOTAL(109,PersonnelExpenses[ESTIMATED]) -> 18,500.00 | D9: =SUBTOTAL(109,PersonnelExpenses[ACTUAL]) -> 14,100.00 | F9: =SUBTOTAL(109,PersonnelExpenses[DIFFERENCE]) -> 4,400.00

Sheet Operating Expenses
B1: =COMPANY_NAME -> COMPANY NAME | E1: DATE | F1: DATE
B2: MONTHLY BUDGET
B5: OPERATING EXPENSES | C5: ESTIMATED | D5: ACTUAL | E5: TOP 5 AMOUNT | F5: DIFFERENCE
B6: Advertising | C6: 3,000.00 | D6: 2500 | E6: =OperatingExpenses[[#This Row],[ACTUAL]]+(10^-6)*ROW(OperatingExpenses[[#This Row],[ACTUAL]]) -> 2500.000006 | F6: =OperatingExpenses[[#This Row],[ESTIMATED]]-OperatingExpenses[[#This Row],[ACTUAL]] -> 500
B7: Bad debts | C7: 2,000.00 | D7: 2,000.00 | E7: =OperatingExpenses[[#This Row],[ACTUAL]]+(10^-6)*ROW(OperatingExpenses[[#This Row],[ACTUAL]]) -> 2,000.00 | F7: =OperatingExpenses[[#This Row],[ESTIMATED]]-OperatingExpenses[[#This Row],[ACTUAL]] -> 0.00
B8: Cash discounts | C8: 1,500.00 | D8: 2,175.00 | E8: =OperatingExpenses[[#This Row],[ACTUAL]]+(10^-6)*ROW(OperatingExpenses[[#This Row],[ACTUAL]]) -> 2,175.00 | F8: =OperatingExpenses[[#This Row],[ESTIMATED]]-OperatingExpenses[[#This Row],[ACTUAL]] -> (675.00)
B9: Delivery costs | C9: 2,000.00 | D9: 1,500.00 | E9: =OperatingExpenses[[#This Row],[ACTUAL]]+(10^-6)*ROW(OperatingExpenses[[#This Row],[ACTUAL]]) -> 1,500.00 | F9: =OperatingExpenses[[#This Row],[ESTIMATED]]-OperatingExpenses[[#This Row],[ACTUAL]] -> 500.00
B10: Depreciation | C10: 1,000.00 | D10: 1000 | E10: =OperatingExpenses[[#This Row],[ACTUAL]]+(10^-6)*ROW(OperatingExpenses[[#This Row],[ACTUAL]]) -> 1000.00001 | F10: =OperatingExpenses[[#This Row],[ESTIMATED]]-OperatingExpenses[[#This Row],[ACTUAL]] -> 0
B11: Dues and subscriptions | C11: 500.00 | D11: 525 | E11: =OperatingExpenses[[#This Row],[ACTUAL]]+(10^-6)*ROW(OperatingExpenses[[#This Row],[ACTUAL]]) -> 525.000011 | F11: =OperatingExpenses[[#This Row],[ESTIMATED]]-OperatingExpenses[[#This Row],[ACTUAL]] -> -25
B12: Insurance | C12: 1300 | D12: 1275 | E12: =OperatingExpenses[[#This Row],[ACTUAL]]+(10^-6)*ROW(OperatingExpenses[[#This Row],[ACTUAL]]) -> 1275.000012 | F12: =OperatingExpenses[[#This Row],[ESTIMATED]]-OperatingExpenses[[#This Row],[ACTUAL]] -> 25
B13: Interest | C13: 2000 | D13: 2200 | E13: =OperatingExpenses[[#This Row],[ACTUAL]]+(10^-6)*ROW(OperatingExpenses[[#This Row],[ACTUAL]]) -> 2200.000013 | F13: =OperatingExpenses[[#This Row],[ESTIMATED]]-OperatingExpenses[[#This Row],[ACTUAL]] -> -200
B14: Legal and auditing | C14: 1000 | D14: 800 | E14: =OperatingExpenses[[#This Row],[ACTUAL]]+(10^-6)*ROW(OperatingExpenses[[#This Row],[ACTUAL]]) -> 800.000014 | F14: =OperatingExpenses[[#This Row],[ESTIMATED]]-OperatingExpenses[[#This Row],[ACTUAL]] -> 200
B15: Maintenance and repairs | C15: 4500 | D15: 4600 | E15: =OperatingExpenses[[#This Row],[ACTUAL]]+(10^-6)*ROW(OperatingExpenses[[#This Row],[ACTUAL]]) -> 4600.000015 | F15: =OperatingExpenses[[#This Row],[ESTIMATED]]-OperatingExpenses[[#This Row],[ACTUAL]] -> -100
B16: Office supplies | C16: 800 | D16: 750 | E16: =OperatingExpenses[[#This Row],[ACTUAL]]+(10^-6)*ROW(OperatingExpenses[[#This Row],[ACTUAL]]) -> 750.000016 | F16: =OperatingExpenses[[#This Row],[ESTIMATED]]-OperatingExpenses[[#This Row],[ACTUAL]] -> 50
B17: Postage | C17: 400 | D17: 350 | E17: =OperatingExpenses[[#This Row],[ACTUAL]]+(10^-6)*ROW(OperatingExpenses[[#This Row],[ACTUAL]]) -> 350.000017 | F17: =OperatingExpenses[[#This Row],[ESTIMATED]]-OperatingExpenses[[#This Row],[ACTUAL]] -> 50
B18: Rent or mortgage | C18: 4100 | D18: 4500 | E18: =OperatingExpenses[[#This Row],[ACTUAL]]+(10^-6)*ROW(OperatingExpenses[[#This Row],[ACTUAL]]) -> 4500.000018 | F18: =OperatingExpenses[[#This Row],[ESTIMATED]]-OperatingExpenses[[#This Row],[ACTUAL]] -> -400
B19: Sales expenses | C19: 350 | D19: 400 | E19: =OperatingExpenses[[#This Row],[ACTUAL]]+(10^-6)*ROW(OperatingExpenses[[#This Row],[ACTUAL]]) -> 400.000019 | F19: =OperatingExpenses[[#This Row],[ESTIMATED]]-OperatingExpenses[[#This Row],[ACTUAL]] -> -50
B20: Shipping and storage | C20: 900 | D20: 840 | E20: =OperatingExpenses[[#This Row],[ACTUAL]]+(10^-6)*ROW(OperatingExpenses[[#This Row],[ACTUAL]]) -> 840.00002 | F20: =OperatingExpenses[[#This Row],[ESTIMATED]]-OperatingExpenses[[#This Row],[ACTUAL]] -> 60
B21: Supplies | C21: 5000 | D21: 4500 | E21: =OperatingExpenses[[#This Row],[ACTUAL]]+(10^-6)*ROW(OperatingExpenses[[#This Row],[ACTUAL]]) -> 4500.000021 | F21: =OperatingExpenses[[#This Row],[ESTIMATED]]-OperatingExpenses[[#This Row],[ACTUAL]] -> 500
B22: Taxes | C22: 3000 | D22: 3200 | E22: =OperatingExpenses[[#This Row],[ACTUAL]]+(10^-6)*ROW(OperatingExpenses[[#This Row],[ACTUAL]]) -> 3200.000022 | F22: =OperatingExpenses[[#This Row],[ESTIMATED]]-OperatingExpenses[[#This Row],[ACTUAL]] -> -200
B23: Telephone | C23: 250 | D23: 280 | E23: =OperatingExpenses[[#This Row],[ACTUAL]]+(10^-6)*ROW(OperatingExpenses[[#This Row],[ACTUAL]]) -> 280.000023 | F23: =OperatingExpenses[[#This Row],[ESTIMATED]]-OperatingExpenses[[#This Row],[ACTUAL]] -> -30
B24: Utilities | C24: 1400 | D24: 1385 | E24: =OperatingExpenses[[#This Row],[ACTUAL]]+(10^-6)*ROW(OperatingExpenses[[#This Row],[ACTUAL]]) -> 1385.000024 | F24: =OperatingExpenses[[#This Row],[ESTIMATED]]-OperatingExpenses[[#This Row],[ACTUAL]] -> 15
B25: Other | C25: 1000 | D25: 750 | E25: =OperatingExpenses[[#This Row],[ACTUAL]]+(10^-6)*ROW(OperatingExpenses[[#This Row],[ACTUAL]]) -> 750.000025 | F25: =OperatingExpenses[[#This Row],[ESTIMATED]]-OperatingExpenses[[#This Row],[ACTUAL]] -> 250
B26: Total Operating Expenses | C26: =SUBTOTAL(109,OperatingExpenses[ESTIMATED]) -> 36,000.00 | D26: =SUBTOTAL(109,OperatingExpenses[ACTUAL]) -> 35,530.00 | F26: =SUBTOTAL(109,OperatingExpenses[DIFFERENCE]) -> 470.00
